[Event "Memorial Ukrainian Chess Warriors 2024"]
[Site "Lviv"]
[Date "2024.03.15"]
[Round "3.18"]
[White "Marchyshyn, Vasyl"]
[Black "Domanskiy, Mykola"]
[Result "0-1"]
[ECO "B53"]
[WhiteElo "1753"]
[BlackElo "2046"]
[Annotator "RC"]
[PlyCount "170"]
[EventDate "2024.03.06"]
[EventType "swiss"]
[EventCountry "UKR"]
[SourceTitle "playchess.com"]
[Source "ChessBase"]
[SourceQuality "1"]
[TimeControl "600+5"]

1. e4 {[%emt 0:00:02]} c5 {[%emt 0:00:01]} 2. Nf3 {[%emt 0:00:01]} d6 {[%emt 0:00:01]} 3. d4 {[%emt 0:00:01]} cxd4 {[%emt 0:00:01]} 4. Qxd4 {[%emt 0:00:02]} Nc6 {[%emt 0:00:05]} 5. Bb5 {[%emt 0:00:02]} Bd7 {[%emt 0:00:01]} 6. Bxc6 {[%emt 0:00:02]} Bxc6 {[%emt 0:00:01]} 7. Nc3 {[%emt 0:00:01]} e5 {[%emt 0:00:14]} 8. Qd3 {[%emt 0:00:04]} Be7 {[%emt 0:00:02]} 9. h4 {[%emt 0:00:42]} h6 {[%emt 0:00:53]} 10. g4 {[%emt 0:00:47]} Nf6 {[%emt 0:01:25]} 11. Rg1 {[%emt 0:00:06]} Nd7 {[%emt 0:00:04]} 12. Be3 {[%emt 0:00:13]} Qa5 {[%emt 0:01:27]} 13. O-O-O {[%emt 0:00:37]} Nc5 {[%emt 0:00:01]} 14. Bxc5 {[%emt 0:00:26]} Qxc5 {[%emt 0:00:01]} 15. Nd5 {[%emt 0:00:04]} Bxd5 {[%emt 0:00:09]} 16. Qxd5 {[%emt 0:00:03]} Qxf2 {[%emt 0:00:32]} 17. Qb5+ {[%emt 0:01:06]} Kf8 {[%emt 0:00:03]} 18. Qxb7 {[%emt 0:00:23]} Re8 {[%emt 0:00:38]} 19. Rgf1 {[%emt 0:00:03]} Qe3+ {[%emt 0:00:01]} 20. Kb1 {[%emt 0:00:01]} g6 {[%emt 0:00:29]} 21. Qd5 {[%emt 0:00:38]} Rh7 {[%emt 0:00:13]} 22. h5 {[%emt 0:01:04]} gxh5 {[%emt 0:00:25]} 23. gxh5 {[%emt 0:00:27]} Rg7 {[%emt 0:00:01]} 24. Rd2 {[%emt 0:01:35]} Kg8 {[%emt 0:01:22]} 25. Qb7 {[%emt 0:01:46]} Qxf3 {[%emt 0:00:15]} 26. Rdd1 {[%emt 0:00:18]} Qe3 {[%emt 0:00:29]} 27. Qd7 {[%emt 0:00:07]} Kf8 {[%emt 0:00:02]} 28. b3 {[%emt 0:01:12]} Rd8 {[%emt 0:00:11]} 29. Qe6 {[%emt 0:00:31]} Ke8 {[%emt 0:00:30]} 30. Qd5 {[%emt 0:00:02]} Qc5 {[%emt 0:00:11]} 31. Qd3 {[%emt 0:00:05]} Bg5 {[%emt 0:00:20]} 32. Qf3 {[%emt 0:00:07]} Bf4 {[%emt 0:00:02]} 33. Rd5 {[%emt 0:00:02]} Qb6 {[%emt 0:00:14]} 34. Rfd1 {[%emt 0:00:03]} Rg1 {[%emt 0:00:01]} 35. Qh3 {[%emt 0:00:06]} Rxd1+ {[%emt 0:00:36]} 36. Rxd1 {[%emt 0:00:02]} a5 {[%emt 0:00:04]} 37. a4 {[%emt 0:00:08]} Qc6 {[%emt 0:00:13]} 38. Qd3 {[%emt 0:00:08]} Ke7 {[%emt 0:00:05]} 39. Rg1 {[%emt 0:00:03]} Bg5 {[%emt 0:00:45]} 40. Rf1 {[%emt 0:00:05]} Rc8 {[%emt 0:00:04]} 41. Kb2 {[%emt 0:00:02]} Bf4 {[%emt 0:00:07]} 42. Rg1 {[%emt 0:00:05]} Qc5 {[%emt 0:00:09]} 43. Rd1 {[%emt 0:00:02]} Be3 {[%emt 0:00:05]} 44. c3 {[%emt 0:00:02]} Bf4 {[%emt 0:00:08]} 45. Re1 {[%emt 0:00:10]} Rb8 {[%emt 0:00:06]} 46. Re2 {[%emt 0:00:06]} Qg1 {[%emt 0:00:05]} 47. Qa6 {[%emt 0:00:10]} Qc5 {[%emt 0:00:30]} 48. Re1 {[%emt 0:00:06]} Rc8 {[%emt 0:00:03]} 49. Qd3 {[%emt 0:00:03]} Qf2+ {[%emt 0:00:04]} 50. Re2 {[%emt 0:00:02]} Qg1 {[%emt 0:00:03]} 51. Rc2 {[%emt 0:00:03]} Qb6 {[%emt 0:00:07]} 52. Rg2 {[%emt 0:00:07]} Rb8 {[%emt 0:00:09]} 53. Qd5 {[%emt 0:00:07]} Qc5 {[%emt 0:00:08]} 54. Qd3 {[%emt 0:00:07]} Bg5 {[%emt 0:00:07]} 55. Rc2 {[%emt 0:00:06]} Qc6 {[%emt 0:00:01]} 56. Ka2 {[%emt 0:00:03]} Bf4 {[%emt 0:00:11]} 57. Rg2 {[%emt 0:00:05]} Qc5 {[%emt 0:00:07]} 58. Kb2 {[%emt 0:00:03]} Rc8 {[%emt 0:00:09]} 59. Rc2 {[%emt 0:00:07]} Qe3 {[%emt 0:00:05]} 60. Qd5 {[%emt 0:00:03]} Rc5 {[%emt 0:00:03]} 61. Qb7+ {[%emt 0:00:03]} Ke6 {[%emt 0:00:05]} 62. Qa8 {[%emt 0:00:05]} Bg5 {[%emt 0:00:11]} 63. Qe8+ {[%emt 0:00:06]} Be7 {[%emt 0:00:04]} 64. Qa8 {[%emt 0:00:03]} Qf3 {[%emt 0:00:06]} 65. Qb7 {[%emt 0:00:09]} Qxh5 {[%emt 0:00:05]} 66. b4 {[%emt 0:00:06]} axb4 {[%emt 0:00:02]} 67. cxb4 {[%emt 0:00:03]} Rxc2+ {[%emt 0:00:01]} 68. Kxc2 {[%emt 0:00:01]} Qe2+ {[%emt 0:00:02]} 69. Kb3 {[%emt 0:00:02]} Qd3+ {[%emt 0:00:01]} 70. Kb2 {[%emt 0:00:03]} Bg5 {[%emt 0:00:17]} 71. Qc8+ {[%emt 0:00:07]} Ke7 {[%emt 0:00:03]} 72. Qc7+ {[%emt 0:00:03]} Kf8 {[%emt 0:00:01]} 73. a5 {[%emt 0:00:03]} Kg7 {[%emt 0:00:08]} 74. Qc6 {[%emt 0:00:05]} Qd4+ {[%emt 0:00:02]} 75. Kb3 {[%emt 0:00:01]} Bd2 {[%emt 0:00:03]} 76. Qc4 {[%emt 0:00:04]} Qe3+ {[%emt 0:00:05]} 77. Ka4 {[%emt 0:00:03]} h5 {[%emt 0:00:08]} 78. a6 {[%emt 0:00:05]} h4 {[%emt 0:00:08]} 79. Kb5 {[%emt 0:00:13]} h3 {[%emt 0:00:03]} 80. Qf1 {[%emt 0:00:01]} Qc3 {[%emt 0:00:09]} 81. a7 {[%emt 0:00:17]} Qc8 {[%emt 0:00:11]} 82. Ka5 {[%emt 0:00:11]} Qb7 {[%emt 0:00:08]} 83. Qxh3 {[%emt 0:00:05]} Qxa7+ {[%emt 0:00:02]} 84. Kb5 {[%emt 0:00:01]} Qb7+ {[%emt 0:00:00]} 85. Kc4 {[%emt 0:00:02]} Qxb4+ 0-1

[Event "Memorial Ukrainian Chess Warriors 2024"]
[Site "Lviv"]
[Date "2024.03.15"]
[Round "3.20"]
[White "Pastukhov, Igor"]
[Black "Shala, Maksym"]
[Result "0-1"]
[ECO "D37"]
[WhiteElo "2125"]
[BlackElo "1807"]
[Annotator "RC"]
[PlyCount "42"]
[EventDate "2024.03.06"]
[EventType "swiss"]
[EventCountry "UKR"]
[SourceTitle "playchess.com"]
[Source "ChessBase"]
[SourceQuality "1"]
[TimeControl "600+5"]

1. d4 {[%emt 0:00:04]} Nf6 {[%emt 0:00:02]} 2. c4 {[%emt 0:00:01]} e6 {[%emt 0:00:01]} 3. Nf3 {[%emt 0:00:02]} d5 {[%emt 0:00:03]} 4. Nc3 {[%emt 0:00:03]} dxc4 {[%emt 0:00:04]} 5. e3 {[%emt 0:00:15]} a6 {[%emt 0:00:03]} 6. a4 {[%emt 0:00:20]} c5 {[%emt 0:00:31]} 7. Bxc4 {[%emt 0:00:02]} Nc6 {[%emt 0:00:04]} 8. O-O {[%emt 0:00:19]} Be7 {[%emt 0:00:08]} 9. Qe2 {[%emt 0:01:11]} O-O {[%emt 0:00:08]} 10. Rd1 {[%emt 0:00:47]} Qc7 {[%emt 0:00:09]} 11. Bd2 {[%emt 0:00:49]} Rd8 {[%emt 0:01:13]} 12. Be1 {[%emt 0:00:16]} cxd4 {[%emt 0:00:24]} 13. exd4 {[%emt 0:01:45]} Qf4 {[%emt 0:04:20]} 14. Qe3 {[%emt 0:01:26]} Qf5 {[%emt 0:01:37]} 15. h3 {[%emt 0:01:46]} Bf8 {[%emt 0:02:17]} 16. g4 {[%emt 0:01:20]} Qa5 {[%emt 0:00:12]} 17. Ne4 {[%emt 0:00:32]} Qc7 {[%emt 0:00:01]} 18. Nxf6+ {[%emt 0:00:06]} gxf6 {[%emt 0:00:01]} 19. Rac1 {[%emt 0:00:09]} Qb6 {[%emt 0:00:04]} 20. Bc3 {[%emt 0:00:21]} Ne7 {[%emt 0:00:04]} 21. Qf4 Nd5 0-1

[Event "Memorial Ukrainian Chess Warriors 2024"]
[Site "Lviv"]
[Date "2024.03.15"]
[Round "3.21"]
[White "Yatsishin, Ivan"]
[Black "Medvedyk, Vasyl"]
[Result "1-0"]
[ECO "D97"]
[WhiteElo "2016"]
[BlackElo "1957"]
[Annotator "RC"]
[PlyCount "93"]
[EventDate "2024.03.06"]
[EventType "swiss"]
[EventCountry "UKR"]
[SourceTitle "playchess.com"]
[Source "ChessBase"]
[SourceQuality "1"]
[TimeControl "600+5"]

1. d4 {[%emt 0:00:01]} Nf6 {[%emt 0:00:01]} 2. c4 {[%emt 0:00:02]} g6 {[%emt 0:00:02]} 3. Nc3 {[%emt 0:00:01]} d5 {[%emt 0:00:03]} 4. Nf3 {[%emt 0:00:02]} Bg7 {[%emt 0:00:06]} 5. Qb3 {[%emt 0:00:02]} dxc4 {[%emt 0:00:09]} 6. Qxc4 {[%emt 0:00:01]} O-O {[%emt 0:00:17]} 7. e4 {[%emt 0:00:01]} c6 {[%emt 0:00:20]} 8. Be2 {[%emt 0:00:03]} Be6 {[%emt 0:00:32]} 9. Qa4 {[%emt 0:00:46]} Qc7 {[%emt 0:00:43]} 10. O-O {[%emt 0:00:21]} c5 {[%emt 0:00:34]} 11. d5 {[%emt 0:01:28]} Bd7 {[%emt 0:00:20]} 12. Qc2 {[%emt 0:00:07]} e6 {[%emt 0:01:00]} 13. g3 {[%emt 0:02:56]} exd5 {[%emt 0:00:28]} 14. exd5 {[%emt 0:00:21]} Bf5 {[%emt 0:00:21]} 15. Qb3 {[%emt 0:00:18]} Nbd7 {[%emt 0:00:28]} 16. Bf4 {[%emt 0:00:02]} Qb6 {[%emt 0:00:15]} 17. Nb5 {[%emt 0:00:38]} Rac8 {[%emt 0:00:51]} 18. a4 {[%emt 0:01:34]} c4 {[%emt 0:00:43]} 19. Bxc4 {[%emt 0:00:01]} Nc5 {[%emt 0:00:05]} 20. Qa3 {[%emt 0:00:42]} Be4 {[%emt 0:01:02]} 21. a5 {[%emt 0:00:19]} Qd8 {[%emt 0:00:03]} 22. Nd6 {[%emt 0:00:09]} Bxf3 {[%emt 0:00:21]} 23. Qxf3 {[%emt 0:00:02]} Ra8 {[%emt 0:00:10]} 24. b4 {[%emt 0:00:08]} Ncd7 {[%emt 0:00:16]} 25. Nxb7 {[%emt 0:00:05]} Qc8 {[%emt 0:00:08]} 26. Nd6 {[%emt 0:00:01]} Qd8 {[%emt 0:00:07]} 27. Rad1 {[%emt 0:00:19]} Nh5 {[%emt 0:00:10]} 28. Nb5 {[%emt 0:00:44]} Nxf4 {[%emt 0:00:13]} 29. Qxf4 {[%emt 0:00:02]} Ne5 {[%emt 0:00:08]} 30. Be2 {[%emt 0:00:23]} a6 {[%emt 0:00:11]} 31. Nd4 {[%emt 0:00:13]} Qxd5 {[%emt 0:00:27]} 32. Nf5 {[%emt 0:00:03]} Qe6 {[%emt 0:00:09]} 33. Nxg7 {[%emt 0:00:08]} Kxg7 {[%emt 0:00:01]} 34. Rfe1 {[%emt 0:00:03]} Rad8 {[%emt 0:00:47]} 35. Bxa6 {[%emt 0:00:23]} Rxd1 {[%emt 0:00:09]} 36. Rxd1 {[%emt 0:00:01]} Qxa6 {[%emt 0:00:21]} 37. Qxe5+ {[%emt 0:00:01]} Kg8 {[%emt 0:00:01]} 38. Rd6 {[%emt 0:00:11]} Qc4 {[%emt 0:00:04]} 39. Qd4 {[%emt 0:00:06]} Qc1+ {[%emt 0:00:04]} 40. Kg2 {[%emt 0:00:00]} Qc8 {[%emt 0:00:05]} 41. h4 {[%emt 0:00:03]} Qb7+ {[%emt 0:00:03]} 42. Kh2 {[%emt 0:00:03]} Qb8 {[%emt 0:00:13]} 43. a6 {[%emt 0:00:05]} Re8 {[%emt 0:00:07]} 44. a7 {[%emt 0:00:02]} Qa8 {[%emt 0:00:05]} 45. b5 {[%emt 0:00:07]} Rc8 {[%emt 0:00:15]} 46. b6 {[%emt 0:00:06]} Qb7 {[%emt 0:00:06]} 47. Rd8+ {[%emt 0:00:06]} 1-0

[Event "Memorial Ukrainian Chess Warriors 2024"]
[Site "Lviv"]
[Date "2024.03.15"]
[Round "3.22"]
[White "Baziuk, Vladyslav"]
[Black "Rubakha, Oleksiy"]
[Result "1-0"]
[ECO "C44"]
[WhiteElo "2211"]
[BlackElo "1781"]
[Annotator "RC"]
[PlyCount "113"]
[EventDate "2024.03.06"]
[EventType "swiss"]
[EventCountry "UKR"]
[SourceTitle "playchess.com"]
[Source "ChessBase"]
[SourceQuality "1"]
[TimeControl "600+5"]

1. e4 {[%emt 0:00:02]} e5 {[%emt 0:00:01]} 2. Nf3 {[%emt 0:00:01]} Nc6 {[%emt 0:00:01]} 3. d4 {[%emt 0:00:00]} exd4 {[%emt 0:00:02]} 4. Nxd4 {[%emt 0:00:02]} Nf6 {[%emt 0:00:02]} 5. Nc3 {[%emt 0:00:01]} Bb4 {[%emt 0:00:01]} 6. Nxc6 {[%emt 0:00:03]} bxc6 {[%emt 0:00:01]} 7. Bd3 {[%emt 0:00:02]} d5 {[%emt 0:00:01]} 8. exd5 {[%emt 0:00:02]} O-O {[%emt 0:00:02]} 9. O-O {[%emt 0:00:02]} cxd5 {[%emt 0:00:02]} 10. h3 {[%emt 0:00:02]} h6 {[%emt 0:00:03]} 11. Qf3 {[%emt 0:00:04]} c6 {[%emt 0:00:08]} 12. Ne2 {[%emt 0:00:11]} Bd6 {[%emt 0:00:24]} 13. Bf4 {[%emt 0:00:57]} Re8 14. Rad1 {[%emt 0:00:49]} Bxf4 {[%emt 0:01:33]} 15. Qxf4 {[%emt 0:00:19]} Qb6 {[%emt 0:00:25]} 16. b3 {[%emt 0:00:37]} Ba6 {[%emt 0:00:51]} 17. Ng3 {[%emt 0:00:15]} c5 {[%emt 0:00:49]} 18. c4 {[%emt 0:00:33]} dxc4 {[%emt 0:01:27]} 19. bxc4 {[%emt 0:00:32]} Rad8 {[%emt 0:00:06]} 20. Nf5 {[%emt 0:00:25]} Qb2 {[%emt 0:00:33]} 21. Qg3 {[%emt 0:01:14]} Nh5 {[%emt 0:01:50]} 22. Qg4 {[%emt 0:00:21]} Qf6 {[%emt 0:00:55]} 23. Qxh5 {[%emt 0:00:15]} Re5 {[%emt 0:01:16]} 24. Qf3 {[%emt 0:01:07]} Rxd3 {[%emt 0:00:23]} 25. Nxh6+ {[%emt 0:00:24]} Qxh6 {[%emt 0:00:01]} 26. Qxd3 {[%emt 0:00:01]} Qf4 {[%emt 0:00:21]} 27. Rfe1 {[%emt 0:00:42]} Rf5 {[%emt 0:00:15]} 28. Qe3 {[%emt 0:00:59]} Qxe3 {[%emt 0:00:26]} 29. Rxe3 {[%emt 0:00:02]} Bxc4 {[%emt 0:00:02]} 30. Ra3 {[%emt 0:00:07]} a6 {[%emt 0:00:02]} 31. Rc1 {[%emt 0:00:01]} Bb5 {[%emt 0:00:01]} 32. Rac3 {[%emt 0:00:40]} c4 {[%emt 0:00:07]} 33. Ra3 {[%emt 0:00:19]} Kf8 {[%emt 0:00:07]} 34. Ra5 {[%emt 0:00:05]} Rd5 {[%emt 0:00:29]} 35. a4 {[%emt 0:00:06]} Bc6 {[%emt 0:00:01]} 36. Rxa6 {[%emt 0:00:08]} Rc5 {[%emt 0:00:02]} 37. Rc3 {[%emt 0:00:43]} Ke7 {[%emt 0:00:01]} 38. Ra7+ {[%emt 0:00:01]} Ke6 {[%emt 0:00:09]} 39. f3 {[%emt 0:00:07]} Be8 {[%emt 0:00:13]} 40. Kf2 {[%emt 0:00:05]} Kd5 {[%emt 0:00:01]} 41. Ke3 {[%emt 0:00:02]} Rc6 {[%emt 0:00:02]} 42. Re7 {[%emt 0:00:03]} Rc8 {[%emt 0:00:10]} 43. a5 {[%emt 0:00:04]} Kd6 {[%emt 0:00:04]} 44. Re4 {[%emt 0:00:10]} Bb5 {[%emt 0:00:01]} 45. Kd4 {[%emt 0:00:08]} Ra8 {[%emt 0:00:05]} 46. Re5 {[%emt 0:00:02]} Rxa5 {[%emt 0:00:12]} 47. Rxc4 {[%emt 0:00:07]} Bxc4 {[%emt 0:00:02]} 48. Rxa5 {[%emt 0:00:01]} Be6 {[%emt 0:00:01]} 49. Ra6+ {[%emt 0:00:04]} Ke7 {[%emt 0:00:01]} 50. h4 {[%emt 0:00:03]} Kf6 {[%emt 0:00:01]} 51. g4 {[%emt 0:00:05]} g6 {[%emt 0:00:08]} 52. Ke4 {[%emt 0:00:10]} Kg7 {[%emt 0:00:08]} 53. Rxe6 {[%emt 0:00:27]} fxe6 {[%emt 0:00:01]} 54. Ke5 {[%emt 0:00:02]} Kf7 {[%emt 0:00:01]} 55. g5 {[%emt 0:00:01]} Ke7 {[%emt 0:00:04]} 56. f4 {[%emt 0:00:01]} Kf7 {[%emt 0:00:02]} 57. Kd6 {[%emt 0:00:01]} 1-0

[Event "Memorial Ukrainian Chess Warriors 2024"]
[Site "Lviv"]
[Date "2024.03.15"]
[Round "3.23"]
[White "Stolbov, Mikhail G."]
[Black "Tyurin, Rostyslav"]
[Result "1-0"]
[ECO "D03"]
[WhiteElo "2205"]
[BlackElo "1718"]
[Annotator "RC"]
[PlyCount "57"]
[EventDate "2024.03.06"]
[EventType "swiss"]
[EventCountry "UKR"]
[SourceTitle "playchess.com"]
[Source "ChessBase"]
[SourceQuality "1"]
[TimeControl "600+5"]

1. d4 {[%emt 0:00:02]} d5 {[%emt 0:00:01]} 2. Nf3 {[%emt 0:00:01]} Nf6 {[%emt 0:00:02]} 3. Bg5 {[%emt 0:00:03]} e6 {[%emt 0:00:01]} 4. e3 {[%emt 0:00:01]} c6 {[%emt 0:00:01]} 5. Bd3 {[%emt 0:00:02]} Be7 {[%emt 0:00:01]} 6. Nbd2 {[%emt 0:00:02]} Nbd7 {[%emt 0:00:01]} 7. c3 {[%emt 0:00:03]} h6 {[%emt 0:00:08]} 8. Bf4 {[%emt 0:00:01]} O-O {[%emt 0:00:31]} 9. g4 {[%emt 0:00:01]} Nh7 {[%emt 0:00:50]} 10. h4 {[%emt 0:00:07]} f5 11. Qc2 Kh8 {[%emt 0:05:09]} 12. gxf5 {[%emt 0:00:47]} exf5 {[%emt 0:00:01]} 13. Bxf5 {[%emt 0:00:14]} Ndf6 {[%emt 0:00:01]} 14. Bxc8 {[%emt 0:00:52]} Rxc8 {[%emt 0:00:19]} 15. Ne5 {[%emt 0:00:01]} c5 {[%emt 0:01:03]} 16. Ng6+ {[%emt 0:00:20]} Kg8 {[%emt 0:00:01]} 17. Nxf8 {[%emt 0:00:11]} Nxf8 {[%emt 0:00:08]} 18. Rg1 {[%emt 0:00:06]} Kh8 {[%emt 0:00:00]} 19. O-O-O {[%emt 0:00:31]} b5 {[%emt 0:00:03]} 20. Nf3 {[%emt 0:00:18]} N8d7 {[%emt 0:00:16]} 21. Qg6 {[%emt 0:00:37]} Bf8 {[%emt 0:00:10]} 22. Ne5 Nxe5 {[%emt 0:00:10]} 23. dxe5 {[%emt 0:00:13]} Ng8 {[%emt 0:00:01]} 24. e6 {[%emt 0:00:47]} b4 {[%emt 0:00:28]} 25. Be5 {[%emt 0:00:10]} Qe7 {[%emt 0:00:00]} 26. Rxd5 {[%emt 0:00:12]} bxc3 {[%emt 0:00:10]} 27. Rd7 {[%emt 0:00:23]} cxb2+ {[%emt 0:00:10]} 28. Bxb2 {[%emt 0:00:02]} Qe8 {[%emt 0:00:21]} 29. Bxg7+ 1-0

[Event "Memorial Ukrainian Chess Warriors 2024"]
[Site "Lviv"]
[Date "2024.03.15"]
[Round "3.25"]
[White "Smotrov, Pavlo"]
[Black "Andrienko, Artem"]
[Result "0-1"]
[ECO "E38"]
[WhiteElo "1646"]
[BlackElo "2041"]
[Annotator "RC"]
[PlyCount "54"]
[EventDate "2024.03.06"]
[EventType "swiss"]
[EventCountry "UKR"]
[SourceTitle "playchess.com"]
[Source "ChessBase"]
[SourceQuality "1"]
[TimeControl "600+5"]

1. d4 {[%emt 0:00:04]} Nf6 {[%emt 0:00:01]} 2. c4 {[%emt 0:00:02]} e6 {[%emt 0:00:03]} 3. Nc3 {[%emt 0:00:03]} Bb4 {[%emt 0:00:03]} 4. Qc2 {[%emt 0:00:02]} c5 {[%emt 0:00:08]} 5. a3 {[%emt 0:00:08]} Bxc3+ {[%emt 0:00:06]} 6. Qxc3 {[%emt 0:00:03]} cxd4 {[%emt 0:00:27]} 7. Qxd4 {[%emt 0:00:10]} Nc6 {[%emt 0:00:02]} 8. Qc3 {[%emt 0:00:06]} O-O {[%emt 0:00:28]} 9. f3 {[%emt 0:00:08]} d5 {[%emt 0:00:15]} 10. cxd5 {[%emt 0:00:06]} exd5 {[%emt 0:00:16]} 11. Bg5 {[%emt 0:00:09]} d4 {[%emt 0:00:02]} 12. Qd2 {[%emt 0:00:08]} h6 {[%emt 0:00:07]} 13. Bh4 {[%emt 0:00:04]} Re8 {[%emt 0:00:11]} 14. Nh3 {[%emt 0:00:36]} Bxh3 {[%emt 0:00:11]} 15. gxh3 {[%emt 0:00:02]} g5 {[%emt 0:00:08]} 16. Rg1 {[%emt 0:00:37]} Kf8 {[%emt 0:00:41]} 17. Bg3 {[%emt 0:00:11]} Nd5 {[%emt 0:00:20]} 18. Bg2 {[%emt 0:00:20]} Ne3 {[%emt 0:00:20]} 19. Kf2 {[%emt 0:00:31]} d3 {[%emt 0:01:13]} 20. Qxd3 {[%emt 0:01:07]} Qb6 {[%emt 0:00:01]} 21. Bd6+ {[%emt 0:00:29]} Kg8 {[%emt 0:00:11]} 22. b4 {[%emt 0:01:04]} Ng4+ {[%emt 0:00:18]} 23. Kg3 {[%emt 0:00:22]} Qf2+ {[%emt 0:00:36]} 24. Kxg4 {[%emt 0:00:13]} Qh4+ {[%emt 0:00:02]} 25. Kf5 {[%emt 0:00:05]} Re5+ {[%emt 0:01:13]} 26. Bxe5 {[%emt 0:00:11]} Ne7+ {[%emt 0:00:01]} 27. Kf6 {[%emt 0:00:05]} g4# {[%emt 0:00:02]} 0-1

[Event "Memorial Ukrainian Chess Warriors 2024"]
[Site "Lviv"]
[Date "2024.03.15"]
[Round "3.26"]
[White "Lornye, Pylyp"]
[Black "Polulikh, Stepan"]
[Result "1-0"]
[ECO "A05"]
[WhiteElo "2147"]
[BlackElo "1735"]
[Annotator "RC"]
[PlyCount "104"]
[EventDate "2024.03.06"]
[EventType "swiss"]
[EventCountry "UKR"]
[SourceTitle "playchess.com"]
[Source "ChessBase"]
[SourceQuality "1"]
[TimeControl "600+5"]

1. Nf3 {[%emt 0:00:03]} Nf6 {[%emt 0:00:04]} 2. g3 {[%emt 0:00:01]} d5 {[%emt 0:00:03]} 3. Bg2 {[%emt 0:00:01]} g6 {[%emt 0:00:13]} 4. O-O {[%emt 0:00:02]} Bg7 {[%emt 0:00:02]} 5. d3 {[%emt 0:00:01]} O-O {[%emt 0:00:06]} 6. Nbd2 {[%emt 0:00:01]} Nc6 {[%emt 0:01:08]} 7. c3 {[%emt 0:00:07]} e5 {[%emt 0:00:08]} 8. e4 {[%emt 0:00:01]} dxe4 {[%emt 0:00:09]} 9. dxe4 {[%emt 0:00:01]} Be6 {[%emt 0:01:20]} 10. Qe2 {[%emt 0:00:04]} Qe7 {[%emt 0:01:33]} 11. Ng5 {[%emt 0:00:48]} Ne8 {[%emt 0:02:01]} 12. Nxe6 {[%emt 0:00:06]} Qxe6 {[%emt 0:00:02]} 13. Nc4 {[%emt 0:00:06]} Rd8 {[%emt 0:00:33]} 14. Ne3 {[%emt 0:00:13]} Ne7 {[%emt 0:01:12]} 15. f4 Qb6 {[%emt 0:01:13]} 16. f5 {[%emt 0:00:35]} f6 {[%emt 0:00:38]} 17. Kh1 {[%emt 0:00:08]} gxf5 {[%emt 0:00:17]} 18. exf5 {[%emt 0:00:50]} Nd6 {[%emt 0:00:02]} 19. a4 {[%emt 0:00:35]} c6 {[%emt 0:00:05]} 20. a5 {[%emt 0:00:32]} Qc7 {[%emt 0:00:03]} 21. b3 {[%emt 0:00:18]} Nf7 {[%emt 0:00:25]} 22. Ba3 {[%emt 0:00:13]} Rfe8 {[%emt 0:00:08]} 23. a6 {[%emt 0:00:39]} Nd5 {[%emt 0:00:14]} 24. Ng4 {[%emt 0:01:03]} Nh6 {[%emt 0:00:08]} 25. Ne3 {[%emt 0:00:41]} Nf7 {[%emt 0:00:04]} 26. c4 {[%emt 0:00:12]} Nxe3 {[%emt 0:00:10]} 27. Qxe3 {[%emt 0:00:00]} b6 {[%emt 0:00:08]} 28. c5 {[%emt 0:00:10]} bxc5 {[%emt 0:00:08]} 29. Qxc5 {[%emt 0:00:05]} Bf8 {[%emt 0:00:06]} 30. Qxc6 {[%emt 0:00:08]} Qxc6 {[%emt 0:00:02]} 31. Bxc6 {[%emt 0:00:01]} Bxa3 {[%emt 0:00:05]} 32. Bxe8 {[%emt 0:00:01]} Bb2 {[%emt 0:00:03]} 33. Bxf7+ {[%emt 0:00:02]} Kxf7 {[%emt 0:00:02]} 34. Ra2 {[%emt 0:00:02]} Bd4 {[%emt 0:00:03]} 35. b4 {[%emt 0:00:03]} Rb8 {[%emt 0:00:02]} 36. Rb1 {[%emt 0:00:01]} Ke7 {[%emt 0:00:04]} 37. Rc2 {[%emt 0:00:02]} Kd6 {[%emt 0:00:03]} 38. b5 {[%emt 0:00:03]} Kd5 {[%emt 0:00:20]} 39. Rc7 {[%emt 0:00:04]} h6 {[%emt 0:00:04]} 40. Rc6 {[%emt 0:00:36]} e4 {[%emt 0:00:08]} 41. Kg2 {[%emt 0:00:09]} Rxb5 {[%emt 0:00:03]} 42. Rxb5+ {[%emt 0:00:01]} Kxc6 {[%emt 0:00:01]} 43. Rb7 {[%emt 0:00:01]} Kd5 {[%emt 0:00:04]} 44. Kf1 {[%emt 0:00:07]} Ke5 {[%emt 0:00:03]} 45. Rb5+ {[%emt 0:00:06]} Kd6 {[%emt 0:00:02]} 46. Ke2 {[%emt 0:00:01]} Bb6 {[%emt 0:00:05]} 47. g4 {[%emt 0:00:06]} Kc6 {[%emt 0:00:02]} 48. Rb3 {[%emt 0:00:02]} Bc7 {[%emt 0:00:18]} 49. h4 {[%emt 0:00:08]} Bb6 {[%emt 0:00:06]} 50. Rb1 {[%emt 0:00:13]} Bd4 {[%emt 0:00:06]} 51. Rb7 {[%emt 0:00:08]} Kd6 {[%emt 0:00:05]} 52. Rh7 {[%emt 0:00:10]} Kc5 1-0